Workbook

Sheet Feuil1
B1: OCTOBRE 2024 | J1: Choisir Date
A2: semaine | B2: lundi | C2: mardi | D2: mercredi | E2: jeudi | F2: vendredi | G2: samedi | H2: dimanche
A3: 40 | C3: 1 | D3: 2 | E3: 3 | F3: 4 | G3: 5 | H3: 6
A5: 41 | B5: 7 | C5: 8 | D5: 9 | E5: 10 | F5: 11 | G5: 12 | H5: 13
A7: 42 | B7: 14 | C7: 15 | D7: 16 | E7: 17 | F7: 18 | G7: 19 | H7: 20
A9: 43 | B9: 21 | C9: 22 | D9: 23 | E9: 24 | F9: 25 | G9: 26 | H9: 27
A11: 44 | B11: 28 | C11: 29 | D11: 30 | E11: 31
A13: 44

Sheet FichFetes
A1: 1 | B1: 7 | C1: Aaron | D1: janvier | E1: 31
A2: 1 | B2: 8 | C2: Alphonse | D2: février | E2: 29
A3: 1 | B3: 8 | C3: Alphonsine | D3: mars | E3: 31
A4: 1 | B4: 10 | C4: Ariel | D4: avril | E4: 30
A5: 1 | B5: 10 | C5: Arielle | D5: mai | E5: 31
A6: 1 | B6: 7 | C6: Aron | D6: juin | E6: 30
A7: 1 | B7: 3 | C7: Aubin | D7: juillet | E7: 31
A8: 1 | B8: 5 | C8: Brieuc | D8: aout | E8: 31
A9: 1 | B9: 7 | C9: Diether | D9: septembre | E9: 30
A10: 1 | B10: 7 | C10: Dietrich | D10: octobre | E10: 31
A11: 1 | B11: 7 | C11: Dirk | D11: novembre | E11: 30
A12: 1 | B12: 8 | C12: Eléazar | D12: décembre | E12: 31
A13: 1 | B13: 2 | C13: Ella
A14: 1 | B14: 2 | C14: Ellénita
A15: 1 | B15: 12 | C15: Eloi
A16: 1 | B16: 7 | C16: Esther
A17: 1 | B17: 10 | C17: Eurielle
A18: 1 | B18: 12 | C18: Florence
A19: 1 | B19: 9 | C19: Gilles
A20: 1 | B20: 10 | C20: Harold
A21: 1 | B21: 7 | C21: Haroun
A22: 1 | B22: 4 | C22: Hugolina
A23: 1 | B23: 4 | C23: Hugues
A24: 1 | B24: 4 | C24: Huguette
A25: 1 | B25: 5 | C25: Jérémie
A26: 1 | B26: 9 | C26: Josué
A27: 1 | B27: 6 | C27: Justin
A28: 1 | B28: 11 | C28: Mathurin
A29: 1 | B29: 11 | C29: Mélissa
A30: 1 | B30: 12 | C30: Nahum
A31: 1 | B31: 11 | C31: Ophélie
A32: 1 | B32: 11 | C32: Pénélope
A33: 1 | B33: 7 | C33: Servan
A34: 1 | B34: 7 | C34: Servane
A35: 1 | B35: 5 | C35: Tamara
A36: 1 | B36: 10 | C36: Thérèse
A37: 1 | B37: 7 | C37: Thierry
A38: 1 | B38: 4 | C38: Valéry
A39: 1 | B39: 2 | C39: Viridiana
A40: 1 | B40: 11 | C40: Yasmine
A41: 2 | B41: 1 | C41: Aissa
A42: 2 | B42: 4 | C42: Alexine
A43: 2 | B43: 1 | C43: Basile
A44: 2 | B44: 6 | C44: Blandine
A45: 2 | B45: 5 | C45: Boris
A46: 2 | B46: 5 | C46: Boriska
A47: 2 | B47: 6 | C47: Dina
A48: 2 | B48: 8 | C48: Eusèbe
A49: 2 | B49: 9 | C49: Ingrid
A50: 2 | B50: 3 | C50: Jaouen
A51: 2 | B51: 8 | C51: Julien
A52: 2 | B52: 4 | C52: Sandie
A53: 2 | B53: 4 | C53: Sandra
A54: 2 | B54: 4 | C54: Sandrine
A55: 2 | B55: 2 | C55: Théophane
A56: 2 | B56: 1 | C56: Vassili
A57: 2 | B57: 1 | C57: Vassily
A58: 2 | B58: 12 | C58: Viviane
A59: 2 | B59: 5 | C59: Zoé
A60: 3 | B60: 2 | C60: Anatole
A61: 3 | B61: 10 | C61: Bianca
A62: 3 | B62: 2 | C62: Blaise
A63: 3 | B63: 10 | C63: Blanche
A64: 3 | B64: 10 | C64: Candide
A65: 3 | B65: 12 | C65: Franç.Xavier
A66: 3 | B66: 1 | C66: Geneviève
A67: 3 | B67: 10 | C67: Gérard
A68: 3 | B68: 1 | C68: Ginette
A69: 3 | B69: 9 | C69: Grégoire
A70: 3 | B70: 9 | C70: Grégory
A71: 3 | B71: 1 | C71: Guenièvre
A72: 3 | B72: 3 | C72: Guenole
A73: 3 | B73: 11 | C73: Gwen
A74: 3 | B74: 11 | C74: Gwenael
A75: 3 | B75: 11 | C75: Gwenaelle
A76: 3 | B76: 11 | C76: Hubert
A77: 3 | B77: 5 | C77: Jacques
A78: 3 | B78: 5 | C78: Jim
A79: 3 | B79: 6 | C79: Kevin
A80: 3 | B80: 8 | C80: Lydia
A81: 3 | B81: 8 | C81: Lydiane
A82: 3 | B82: 8 | C82: Lydie
A83: 3 | B83: 2 | C83: Oscar
A84: 3 | B84: 5 | C84: Philippe
A85: 3 | B85: 4 | C85: Richard
A86: 3 | B86: 7 | C86: Thomas
A87: 3 | B87: 12 | C87: Xavier
A88: 3 | B88: 11 | C88: Yaël
A89: 3 | B89: 11 | C89: Yaëlle
A90: 4 | B90: 4 | C90: Aldric
A91: 4 | B91: 4 | C91: Alèthe
A92: 4 | B92: 4 | C92: Alrick
A93: 4 | B93: 11 | C93: Amance
A94: 4 | B94: 11 | C94: Amanda
A95: 4 | B95: 11 | C95: Amery
A96: 4 | B96: 10 | C96: Aure
A97: 4 | B97: 10 | C97: Aymeric
A98: 4 | B98: 12 | C98: Babette
A99: 4 | B99: 12 | C99: Barbara
A100: 4 | B100: 12 | C100: Barbe
A101: 4 | B101: 12 | C101: Barberine
A102: 4 | B102: 2 | C102: Bérénice
A103: 4 | B103: 7 | C103: Bertha
A104: 4 | B104: 7 | C104: Berthe
A105: 4 | B105: 7 | C105: Bertie
A106: 4 | B106: 2 | C106: Bunny
A107: 4 | B107: 2 | C107: Bunny
A108: 4 | B108: 11 | C108: Carl
A109: 4 | B109: 11 | C109: Carline
A110: 4 | B110: 11 | C110: Carlos
A111: 4 | B111: 11 | C111: Carlotta
A112: 4 | B112: 11 | C112: Caryle
A113: 4 | B113: 3 | C113: Casimir
A114: 4 | B114: 11 | C114: Charles
A115: 4 | B115: 11 | C115: Charlie
A116: 4 | B116: 11 | C116: Chéryl
A117: 4 | B117: 6 | C117: Clothilde
A118: 4 | B118: 6 | C118: Clotilde
A119: 4 | B119: 7 | C119: Eliane
A120: 4 | B120: 11 | C120: Emeric
A121: 4 | B121: 7 | C121: Fleurance
A122: 4 | B122: 7 | C122: Flore
A123: 4 | B123: 7 | C123: Florent
A124: 4 | B124: 5 | C124: Florian
A125: 4 | B125: 7 | C125: Florine
A126: 4 | B126: 10 | C126: Francis
A127: 4 | B127: 10 | C127: Franck
A128: 4 | B128: 10 | C128: Frankie
A129: 4 | B129: 9 | C129: Irma
A130: 4 | B130: 4 | C130: Isidor
A131: 4 | B131: 8 | C131: J.Marie
A132: 4 | B132: 11 | C132: Jessica
A133: 4 | B133: 11 | C133: Jessy
A134: 4 | B134: 11 | C134: Karel
A135: 4 | B135: 7 | C135: Liane
A136: 4 | B136: 4 | C136: Lilian
A137: 4 | B137: 4 | C137: Liliane
A138: 4 | B138: 11 | C138: Mandy
A139: 4 | B139: 9 | C139: Marin
A140: 4 | B140: 9 | C140: Moïse
A141: 4 | B141: 5 | C141: Mona
A142: 4 | B142: 9 | C142: Monessa
A143: 4 | B143: 9 | C143: Moshé
A144: 4 | B144: 1 | C144: Odilon
A145: 4 | B145: 9 | C145: Rosalie
A146: 4 | B146: 5 | C146: Sylvain
A147: 4 | B147: 5 | C147: Sylvaine
A148: 4 | B148: 2 | C148: Vanessa
A149: 4 | B149: 2 | C149: Véronique
A150: 4 | B150: 8 | C150: Vianney
A151: 4 | B151: 6 | C151: Vincente
A152: 5 | B152: 8 | C152: Abel
A153: 5 | B153: 8 | C153: Abélard
A154: 5 | B154: 8 | C154: Abella
A155: 5 | B155: 2 | C155: Agata
A156: 5 | B156: 2 | C156: Agathe
A157: 5 | B157: 10 | C157: Anémone
A158: 5 | B158: 5 | C158: Ange
A159: 5 | B159: 5 | C159: Angelo
A160: 5 | B160: 7 | C160: Antoine-Marie
A161: 5 | B161: 10 | C161: Aymon
A162: 5 | B162: 10 | C162: Aymone
A163: 5 | B163: 10 | C163: Bluette
A164: 5 | B164: 6 | C164: Boniface
A165: 5 | B165: 10 | C165: Capucine
A166: 5 | B166: 10 | C166: Dahlia
A167: 5 | B167: 6 | C167: Dodie
A168: 5 | B168: 6 | C168: Dorothée
A169: 5 | B169: 6 | C169: Dorothy
A170: 5 | B170: 1 | C170: Eddy
A171: 5 | B171: 1 | C171: Edouard
A172: 5 | B172: 1 | C172: Edwina
A173: 5 | B173: 10 | C173: Fleur
A174: 5 | B174: 10 | C174: Gelsomina
A175: 5 | B175: 2 | C175: Gérald
A176: 5 | B176: 2 | C176: Géraldine
A177: 5 | B177: 11 | C177: Géric
A178: 5 | B178: 10 | C178: Hortance
A179: 5 | B179: 6 | C179: Igor
A180: 5 | B180: 4 | C180: Irène
A181: 5 | B181: 10 | C181: Jasmine
A182: 5 | B182: 5 | C182: Judith
A183: 5 | B183: 10 | C183: Myrtil
A184: 5 | B184: 3 | C184: Olive
A185: 5 | B185: 3 | C185: Olivette
A186: 5 | B186: 3 | C186: Olivia
A187: 5 | B187: 8 | C187: Oswald
A188: 5 | B188: 10 | C188: Pervenche
A189: 5 | B189: 7 | C189: Philomène
A190: 5 | B190: 10 | C190: Placide
A191: 5 | B191: 9 | C191: Raissa
A192: 5 | B192: 12 | C192: Sven
A193: 5 | B193: 11 | C193: Sylvette
A194: 5 | B194: 11 | C194: Sylvia
A195: 5 | B195: 11 | C195: Sylviane
A196: 5 | B196: 11 | C196: Sylvic
A197: 5 | B197: 11 | C197: Sylvie
A198: 5 | B198: 1 | C198: Teddy
A199: 5 | B199: 10 | C199: Violaine
A200: 5 | B200: 10 | C200: Violette
... 1018 more rows

Sheet Lune
A1: points: | B1: 200 | D1: dgr | E1: =MOD(($B$3-Lune!G1),$B$4)/$B$4*360 -> 4.932918742 | G1: 2024-10-17
A2: step: | B2: =2/B1 -> 0.01 | D2: cos | E2: =COS(RADIANS(E1)) -> 0.9962960563
A3: first Full Moon: | B3: 2015-01-05T04:53:00 | D3: minor semi axis | E3: =ABS(E2) -> 0.9962960563
A4: Synodic period: | B4: 29.5305882 | D4: major semi axis | E4: 1
A7: x | B7: ellipse | C7: black bottom | D7: transparent | E7: black top
A8: -1 | B8: =IFERROR(IF(SQRT(1-(A8*A8)/($E$3*$E$3))<0.05,0,SQRT(1-(A8*A8)/($E$3*$E$3))),0) -> 0 | C8: =CHOOSE(MATCH($E$1,dgrs),IF(A8<0,IFERROR(1-B8,1),0),0,0,IF(A8>0,IFERROR(1-B8,1),0)) -> 1 | D8: =CHOOSE(MATCH($E$1,dgrs),IF(A8<0,2*B8,2),IF(A8<0,0,1-B8),IF(A8>0,0,1-B8),IF(A8>0,2*B8,2)) -> 0 | E8: =CHOOSE(MATCH($E$1,dgrs),IF(A8<0,B8+1,2),IF(A8<0,2,2*B8),IF(A8>0,2,2*B8),IF(A8>0,B8+1,2)) -> 1
A9: =A8+$B$2 -> -0.99 | B9: =IFERROR(IF(SQRT(1-(A9*A9)/($E$3*$E$3))<0.05,0,SQRT(1-(A9*A9)/($E$3*$E$3))),0) -> 0.1122452262 | C9: 0.8877547738 | D9: 0.2244904524 | E9: =CHOOSE(MATCH($E$1,dgrs),IF(A9<0,B9+1,2),IF(A9<0,2,2*B9),IF(A9>0,2,2*B9),IF(A9>0,B9+1,2)) -> 1.112245226
A10: =A9+$B$2 -> -0.98 | B10: 0.1801270136 | C10: 0.8198729864 | D10: 0.3602540271 | E10: =CHOOSE(MATCH($E$1,dgrs),IF(A10<0,B10+1,2),IF(A10<0,2,2*B10),IF(A10>0,2,2*B10),IF(A10>0,B10+1,2)) -> 1.180127014
A11: =A10+$B$2 -> -0.97 | B11: =IFERROR(IF(SQRT(1-(A11*A11)/($E$3*$E$3))<0.05,0,SQRT(1-(A11*A11)/($E$3*$E$3))),0) -> 0.2282345315 | C11: 0.7717654685 | D11: 0.456469063 | E11: 1.228234532
A12: =A11+$B$2 -> -0.96 | B12: 0.267459851 | C12: 0.732540149 | D12: 0.5349197019 | E12: =CHOOSE(MATCH($E$1,dgrs),IF(A12<0,B12+1,2),IF(A12<0,2,2*B12),IF(A12>0,2,2*B12),IF(A12>0,B12+1,2)) -> 1.267459851
A13: -0.95 | B13: 0.3012923042 | C13: 0.6987076958 | D13: 0.6025846083 | E13: 1.301292304
A14: -0.94 | B14: 0.3313877538 | C14: 0.6686122462 | D14: 0.6627755076 | E14: 1.331387754
A15: -0.93 | B15: 0.3586880878 | C15: 0.6413119122 | D15: 0.7173761756 | E15: 1.358688088
A16: -0.92 | B16: 0.3837902493 | C16: 0.6162097507 | D16: 0.7675804985 | E16: 1.383790249
A17: -0.91 | B17: 0.4071010645 | C17: 0.5928989355 | D17: 0.8142021289 | E17: =CHOOSE(MATCH($E$1,dgrs),IF(A17<0,B17+1,2),IF(A17<0,2,2*B17),IF(A17>0,2,2*B17),IF(A17>0,B17+1,2)) -> 1.407101064
A18: -0.9 | B18: 0.4289127045 | C18: 0.5710872955 | D18: 0.857825409 | E18: 1.428912705
A19: -0.89 | B19: 0.4494434888 | C19: 0.5505565112 | D19: 0.8988869777 | E19: 1.449443489
A20: -0.88 | B20: 0.4688617082 | C20: 0.5311382918 | D20: 0.9377234163 | E20: 1.468861708
A21: -0.87 | B21: 0.487300383 | C21: 0.512699617 | D21: 0.9746007659 | E21: 1.487300383
A22: -0.86 | B22: 0.504866849 | C22: 0.495133151 | D22: 1.009733698 | E22: 1.504866849
A23: -0.85 | B23: 0.5216492283 | C23: 0.4783507717 | D23: 1.043298457 | E23: 1.521649228
A24: -0.84 | B24: 0.5377209404 | C24: 0.4622790596 | D24: 1.075441881 | E24: =CHOOSE(MATCH($E$1,dgrs),IF(A24<0,B24+1,2),IF(A24<0,2,2*B24),IF(A24>0,2,2*B24),IF(A24>0,B24+1,2)) -> 1.53772094
A25: -0.83 | B25: 0.5531439344 | C25: 0.4468560656 | D25: 1.106287869 | E25: 1.553143934
A26: -0.82 | B26: 0.5679710598 | C26: 0.4320289402 | D26: 1.13594212 | E26: 1.56797106
A27: -0.81 | B27: 0.5822478403 | C27: 0.4177521597 | D27: 1.164495681 | E27: 1.58224784
A28: -0.8 | B28: 0.5960138257 | C28: 0.4039861743 | D28: 1.192027651 | E28: 1.596013826
A29: -0.79 | B29: 0.6093036382 | C29: 0.3906963618 | D29: 1.218607276 | E29: 1.609303638
A30: -0.78 | B30: 0.6221477933 | C30: 0.3778522067 | D30: 1.244295587 | E30: 1.622147793
A31: -0.77 | B31: 0.6345733528 | C31: 0.3654266472 | D31: 1.269146706 | E31: 1.634573353
A32: -0.76 | B32: 0.6466044491 | C32: 0.3533955509 | D32: 1.293208898 | E32: 1.646604449
A33: -0.75 | B33: 0.6582627115 | C33: 0.3417372885 | D33: 1.316525423 | E33: 1.658262711
A34: -0.74 | B34: 0.669567615 | C34: 0.330432385 | D34: 1.33913523 | E34: 1.669567615
A35: -0.73 | B35: 0.6805367698 | C35: 0.3194632302 | D35: 1.36107354 | E35: 1.68053677
A36: -0.72 | B36: 0.691186161 | C36: 0.308813839 | D36: 1.382372322 | E36: 1.691186161
A37: -0.71 | B37: 0.7015303511 | C37: 0.2984696489 | D37: 1.403060702 | E37: 1.701530351
A38: -0.7 | B38: 0.7115826501 | C38: 0.2884173499 | D38: 1.4231653 | E38: 1.71158265
A39: -0.69 | B39: 0.7213552609 | C39: 0.2786447391 | D39: 1.442710522 | E39: 1.721355261
A40: -0.68 | B40: 0.7308594031 | C40: 0.2691405969 | D40: 1.461718806 | E40: 1.730859403
A41: -0.67 | B41: 0.7401054195 | C41: 0.2598945805 | D41: 1.480210839 | E41: 1.74010542
A42: -0.66 | B42: 0.7491028681 | C42: 0.2508971319 | D42: 1.498205736 | E42: 1.749102868
A43: -0.65 | B43: 0.7578606021 | C43: 0.2421393979 | D43: 1.515721204 | E43: 1.757860602
A44: -0.64 | B44: 0.7663868393 | C44: 0.2336131607 | D44: 1.532773679 | E44: 1.766386839
A45: -0.63 | B45: 0.7746892235 | C45: 0.2253107765 | D45: 1.549378447 | E45: 1.774689223
A46: -0.62 | B46: 0.7827748773 | C46: 0.2172251227 | D46: 1.565549755 | E46: 1.782774877
A47: -0.61 | B47: 0.7906504502 | C47: 0.2093495498 | D47: 1.5813009 | E47: 1.79065045
A48: -0.6 | B48: 0.7983221594 | C48: 0.2016778406 | D48: 1.596644319 | E48: 1.798322159
A49: -0.59 | B49: 0.8057958279 | C49: 0.1942041721 | D49: 1.611591656 | E49: 1.805795828
A50: -0.58 | B50: 0.8130769167 | C50: 0.1869230833 | D50: 1.626153833 | E50: 1.813076917
A51: -0.57 | B51: 0.8201705548 | C51: 0.1798294452 | D51: 1.64034111 | E51: 1.820170555
A52: -0.56 | B52: 0.8270815652 | C52: 0.1729184348 | D52: 1.65416313 | E52: 1.827081565
A53: -0.55 | B53: 0.833814489 | C53: 0.166185511 | D53: 1.667628978 | E53: 1.833814489
A54: -0.54 | B54: 0.8403736067 | C54: 0.1596263933 | D54: 1.680747213 | E54: 1.840373607
A55: -0.53 | B55: 0.8467629573 | C55: 0.1532370427 | D55: 1.693525915 | E55: 1.846762957
A56: -0.52 | B56: 0.8529863557 | C56: 0.1470136443 | D56: 1.705972711 | E56: 1.852986356
A57: -0.51 | B57: 0.8590474086 | C57: 0.1409525914 | D57: 1.718094817 | E57: 1.859047409
A58: -0.5 | B58: 0.864949529 | C58: 0.135050471 | D58: 1.729899058 | E58: 1.864949529
A59: -0.49 | B59: 0.8706959488 | C59: 0.1293040512 | D59: 1.741391898 | E59: 1.870695949
A60: -0.48 | B60: 0.8762897312 | C60: 0.1237102688 | D60: 1.752579462 | E60: 1.876289731
A61: -0.47 | B61: 0.8817337812 | C61: 0.1182662188 | D61: 1.763467562 | E61: 1.881733781
A62: -0.46 | B62: 0.8870308556 | C62: 0.1129691444 | D62: 1.774061711 | E62: 1.887030856
A63: -0.45 | B63: 0.8921835725 | C63: 0.1078164275 | D63: 1.784367145 | E63: 1.892183572
A64: -0.44 | B64: 0.8971944189 | C64: 0.1028055811 | D64: 1.794388838 | E64: 1.897194419
A65: -0.43 | B65: 0.9020657591 | C65: 0.09793424086 | D65: 1.804131518 | E65: 1.902065759
A66: -0.42 | B66: 0.9067998414 | C66: 0.09320015856 | D66: 1.813599683 | E66: 1.906799841
A67: -0.41 | B67: 0.9113988047 | C67: 0.0886011953 | D67: 1.822797609 | E67: 1.911398805
A68: -0.4 | B68: 0.9158646844 | C68: 0.08413531561 | D68: 1.831729369 | E68: 1.915864684
A69: -0.39 | B69: 0.9201994182 | C69: 0.07980058184 | D69: 1.840398836 | E69: 1.920199418
A70: -0.38 | B70: 0.9244048509 | C70: 0.07559514908 | D70: 1.848809702 | E70: 1.924404851
A71: -0.37 | B71: 0.9284827396 | C71: 0.07151726038 | D71: 1.856965479 | E71: 1.92848274
A72: -0.36 | B72: 0.9324347577 | C72: =CHOOSE(MATCH($E$1,dgrs),IF(A72<0,IFERROR(1-B72,1),0),0,0,IF(A72>0,IFERROR(1-B72,1),0)) -> 0.06756524234 | D72: =CHOOSE(MATCH($E$1,dgrs),IF(A72<0,2*B72,2),IF(A72<0,0,1-B72),IF(A72>0,0,1-B72),IF(A72>0,2*B72,2)) -> 1.864869515 | E72: =CHOOSE(MATCH($E$1,dgrs),IF(A72<0,B72+1,2),IF(A72<0,2,2*B72),IF(A72>0,2,2*B72),IF(A72>0,B72+1,2)) -> 1.932434758
A73: -0.35 | B73: =IFERROR(IF(SQRT(1-(A73*A73)/($E$3*$E$3))<0.05,0,SQRT(1-(A73*A73)/($E$3*$E$3))),0) -> 0.936262499 | C73: 0.06373750104 | D73: 1.872524998 | E73: 1.936262499
A74: =A73+$B$2 -> -0.34 | B74: 0.9399674818 | C74: 0.06003251823 | D74: 1.879934964 | E74: 1.939967482
A75: -0.33 | B75: 0.9435511522 | C75: 0.05644884783 | D75: 1.887102304 | E75: 1.943551152
A76: -0.32 | B76: 0.9470148874 | C76: 0.05298511264 | D76: 1.894029775 | E76: 1.947014887
A77: -0.31 | B77: 0.9503599987 | C77: 0.04964000129 | D77: 1.900719997 | E77: 1.950359999
A78: -0.3 | B78: 0.9535877346 | C78: 0.04641226541 | D78: 1.907175469 | E78: 1.953587735
A79: -0.29 | B79: 0.956699283 | C79: 0.04330071698 | D79: 1.913398566 | E79: 1.956699283
A80: -0.28 | B80: 0.9596957741 | C80: 0.04030422588 | D80: 1.919391548 | E80: 1.959695774
A81: -0.27 | B81: 0.9625782824 | C81: 0.03742171761 | D81: 1.925156565 | E81: 1.962578282
A82: -0.26 | B82: 0.9653478289 | C82: 0.03465217111 | D82: 1.930695658 | E82: 1.965347829
A83: -0.25 | B83: 0.9680053832 | C83: 0.03199461679 | D83: 1.936010766 | E83: 1.968005383
A84: -0.24 | B84: 0.9705518653 | C84: 0.0294481347 | D84: 1.941103731 | E84: 1.970551865
A85: -0.23 | B85: 0.9729881473 | C85: 0.02701185274 | D85: 1.945976295 | E85: 1.972988147
A86: -0.22 | B86: 0.9753150549 | C86: 0.02468494509 | D86: 1.95063011 | E86: 1.975315055
A87: -0.21 | B87: 0.9775333693 | C87: 0.02246663069 | D87: 1.955066739 | E87: 1.977533369
A88: -0.2 | B88: 0.9796438281 | C88: 0.02035617185 | D88: 1.959287656 | E88: 1.979643828
A89: -0.19 | B89: 0.9816471271 | C89: 0.01835287292 | D89: 1.963294254 | E89: 1.981647127
A90: -0.18 | B90: 0.9835439209 | C90: 0.01645607911 | D90: 1.967087842 | E90: 1.983543921
A91: -0.17 | B91: 0.9853348247 | C91: 0.01466517534 | D91: 1.970669649 | E91: 1.985334825
A92: -0.16 | B92: 0.9870204148 | C92: 0.01297958521 | D92: 1.97404083 | E92: 1.987020415
A93: -0.15 | B93: 0.98860123 | C93: 0.01139877003 | D93: 1.97720246 | E93: 1.98860123
A94: -0.14 | B94: 0.9900777721 | C94: 0.009922227946 | D94: 1.980155544 | E94: 1.990077772
A95: -0.13 | B95: 0.9914505069 | C95: 0.008549493072 | D95: 1.982901014 | E95: 1.991450507
A96: -0.12 | B96: 0.9927198652 | C96: 0.007280134776 | D96: 1.98543973 | E96: 1.992719865
A97: -0.11 | B97: 0.993886243 | C97: 0.00611375697 | D97: 1.987772486 | E97: 1.993886243
A98: -0.1 | B98: 0.9949500025 | C98: 0.005049997484 | D98: 1.989900005 | E98: 1.994950003
A99: -0.09 | B99: 0.9959114725 | C99: 0.004088527488 | D99: 1.991822945 | E99: 1.995911473
A100: -0.08 | B100: 0.996770949 | C100: 0.003229050983 | D100: 1.993541898 | E100: 1.996770949
A101: -0.07 | B101: 0.9975286957 | C101: 0.002471304333 | D101: 1.995057391 | E101: 1.997528696
A102: -0.06 | B102: 0.9981849441 | C102: 0.001815055863 | D102: 1.996369888 | E102: 1.998184944
A103: -0.05 | B103: 0.9987398945 | C103: 0.001260105495 | D103: 1.997479789 | E103: 1.998739895
A104: -0.04 | B104: 0.9991937156 | C104: 0.0008062844467 | D104: 1.998387431 | E104: 1.999193716
A105: -0.03 | B105: 0.999546545 | C105: 0.0004534549729 | D105: 1.99909309 | E105: 1.999546545
A106: -0.02 | B106: 0.9997984898 | C106: 0.000201510153 | D106: 1.99959698 | E106: 1.99979849
A107: -0.01 | B107: 0.9999496263 | C107: 5.037373122e-05 | D107: 1.999899253 | E107: 1.999949626
A108: 7.528699886e-16 | B108: 1 | C108: 0 | D108: 2 | E108: =CHOOSE(MATCH($E$1,dgrs),IF(A108<0,B108+1,2),IF(A108<0,2,2*B108),IF(A108>0,2,2*B108),IF(A108>0,B108+1,2)) -> 2
A109: 0.01 | B109: 0.9999496263 | C109: 0 | D109: 2 | E109: 2
A110: 0.02 | B110: 0.9997984898 | C110: 0 | D110: 2 | E110: 2
A111: 0.03 | B111: 0.999546545 | C111: 0 | D111: 2 | E111: 2
A112: 0.04 | B112: 0.9991937156 | C112: 0 | D112: 2 | E112: 2
A113: 0.05 | B113: 0.9987398945 | C113: 0 | D113: 2 | E113: 2
A114: 0.06 | B114: 0.9981849441 | C114: 0 | D114: 2 | E114: 2
A115: 0.07 | B115: 0.9975286957 | C115: 0 | D115: 2 | E115: 2
A116: 0.08 | B116: 0.996770949 | C116: 0 | D116: 2 | E116: 2
A117: 0.09 | B117: 0.9959114725 | C117: 0 | D117: 2 | E117: 2
A118: 0.1 | B118: 0.9949500025 | C118: 0 | D118: 2 | E118: 2
A119: 0.11 | B119: 0.993886243 | C119: 0 | D119: 2 | E119: 2
A120: 0.12 | B120: 0.9927198652 | C120: 0 | D120: 2 | E120: 2
A121: 0.13 | B121: 0.9914505069 | C121: 0 | D121: 2 | E121: 2
A122: 0.14 | B122: 0.9900777721 | C122: 0 | D122: 2 | E122: 2
A123: 0.15 | B123: 0.98860123 | C123: 0 | D123: 2 | E123: 2
A124: 0.16 | B124: 0.9870204148 | C124: 0 | D124: 2 | E124: 2
A125: 0.17 | B125: 0.9853348247 | C125: 0 | D125: 2 | E125: 2
A126: 0.18 | B126: 0.9835439209 | C126: 0 | D126: 2 | E126: 2
A127: 0.19 | B127: 0.9816471271 | C127: 0 | D127: 2 | E127: 2
A128: 0.2 | B128: 0.9796438281 | C128: 0 | D128: 2 | E128: 2
A129: 0.21 | B129: 0.9775333693 | C129: 0 | D129: 2 | E129: 2
A130: 0.22 | B130: 0.9753150549 | C130: 0 | D130: 2 | E130: 2
A131: 0.23 | B131: 0.9729881473 | C131: 0 | D131: 2 | E131: 2
A132: 0.24 | B132: 0.9705518653 | C132: 0 | D132: 2 | E132: 2
A133: 0.25 | B133: 0.9680053832 | C133: 0 | D133: 2 | E133: 2
A134: 0.26 | B134: 0.9653478289 | C134: 0 | D134: 2 | E134: 2
A135: 0.27 | B135: 0.9625782824 | C135: 0 | D135: 2 | E135: 2
A136: 0.28 | B136: 0.9596957741 | C136: =CHOOSE(MATCH($E$1,dgrs),IF(A136<0,IFERROR(1-B136,1),0),0,0,IF(A136>0,IFERROR(1-B136,1),0)) -> 0 | D136: =CHOOSE(MATCH($E$1,dgrs),IF(A136<0,2*B136,2),IF(A136<0,0,1-B136),IF(A136>0,0,1-B136),IF(A136>0,2*B136,2)) -> 2 | E136: =CHOOSE(MATCH($E$1,dgrs),IF(A136<0,B136+1,2),IF(A136<0,2,2*B136),IF(A136>0,2,2*B136),IF(A136>0,B136+1,2)) -> 2
A137: 0.29 | B137: =IFERROR(IF(SQRT(1-(A137*A137)/($E$3*$E$3))<0.05,0,SQRT(1-(A137*A137)/($E$3*$E$3))),0) -> 0.956699283 | C137: 0 | D137: 2 | E137: 2
A138: =A137+$B$2 -> 0.3 | B138: 0.9535877346 | C138: 0 | D138: 2 | E138: 2
A139: 0.31 | B139: 0.9503599987 | C139: 0 | D139: 2 | E139: 2
A140: 0.32 | B140: 0.9470148874 | C140: 0 | D140: 2 | E140: 2
A141: 0.33 | B141: 0.9435511522 | C141: 0 | D141: 2 | E141: 2
A142: 0.34 | B142: 0.9399674818 | C142: 0 | D142: 2 | E142: 2
A143: 0.35 | B143: 0.936262499 | C143: 0 | D143: 2 | E143: 2
A144: 0.36 | B144: 0.9324347577 | C144: 0 | D144: 2 | E144: 2
A145: 0.37 | B145: 0.9284827396 | C145: 0 | D145: 2 | E145: 2
A146: 0.38 | B146: 0.9244048509 | C146: 0 | D146: 2 | E146: 2
A147: 0.39 | B147: 0.9201994182 | C147: 0 | D147: 2 | E147: 2
A148: 0.4 | B148: 0.9158646844 | C148: 0 | D148: 2 | E148: 2
A149: 0.41 | B149: 0.9113988047 | C149: 0 | D149: 2 | E149: 2
A150: 0.42 | B150: 0.9067998414 | C150: 0 | D150: 2 | E150: 2
A151: 0.43 | B151: 0.9020657591 | C151: 0 | D151: 2 | E151: 2
A152: 0.44 | B152: 0.8971944189 | C152: 0 | D152: 2 | E152: 2
A153: 0.45 | B153: 0.8921835725 | C153: 0 | D153: 2 | E153: 2
A154: 0.46 | B154: 0.8870308556 | C154: 0 | D154: 2 | E154: 2
A155: 0.47 | B155: 0.8817337812 | C155: 0 | D155: 2 | E155: 2
A156: 0.48 | B156: 0.8762897312 | C156: 0 | D156: 2 | E156: 2
A157: 0.49 | B157: 0.8706959488 | C157: 0 | D157: 2 | E157: 2
A158: 0.5 | B158: 0.864949529 | C158: 0 | D158: 2 | E158: 2
A159: 0.51 | B159: 0.8590474086 | C159: 0 | D159: 2 | E159: 2
A160: 0.52 | B160: 0.8529863557 | C160: 0 | D160: 2 | E160: 2
A161: 0.53 | B161: 0.8467629573 | C161: 0 | D161: 2 | E161: 2
A162: 0.54 | B162: 0.8403736067 | C162: 0 | D162: 2 | E162: 2
A163: 0.55 | B163: 0.833814489 | C163: 0 | D163: 2 | E163: 2
A164: 0.56 | B164: 0.8270815652 | C164: 0 | D164: 2 | E164: 2
A165: 0.57 | B165: 0.8201705548 | C165: 0 | D165: 2 | E165: 2
A166: 0.58 | B166: 0.8130769167 | C166: 0 | D166: 2 | E166: 2
A167: 0.59 | B167: 0.8057958279 | C167: 0 | D167: 2 | E167: 2
A168: 0.6 | B168: 0.7983221594 | C168: 0 | D168: 2 | E168: 2
A169: 0.61 | B169: 0.7906504502 | C169: 0 | D169: 2 | E169: 2
A170: 0.62 | B170: 0.7827748773 | C170: 0 | D170: 2 | E170: 2
A171: 0.63 | B171: 0.7746892235 | C171: 0 | D171: 2 | E171: 2
A172: 0.64 | B172: 0.7663868393 | C172: 0 | D172: 2 | E172: 2
A173: 0.65 | B173: 0.7578606021 | C173: 0 | D173: 2 | E173: 2
A174: 0.66 | B174: 0.7491028681 | C174: 0 | D174: 2 | E174: 2
A175: 0.67 | B175: 0.7401054195 | C175: 0 | D175: 2 | E175: 2
A176: 0.68 | B176: 0.7308594031 | C176: 0 | D176: 2 | E176: 2
A177: 0.69 | B177: 0.7213552609 | C177: 0 | D177: 2 | E177: 2
A178: 0.7 | B178: 0.7115826501 | C178: 0 | D178: 2 | E178: 2
A179: 0.71 | B179: 0.7015303511 | C179: 0 | D179: 2 | E179: 2
A180: 0.72 | B180: 0.691186161 | C180: 0 | D180: 2 | E180: 2
A181: 0.73 | B181: 0.6805367698 | C181: 0 | D181: 2 | E181: 2
A182: 0.74 | B182: 0.669567615 | C182: 0 | D182: 2 | E182: 2
A183: 0.75 | B183: 0.6582627115 | C183: 0 | D183: 2 | E183: 2
A184: 0.76 | B184: 0.6466044491 | C184: 0 | D184: 2 | E184: 2
A185: 0.77 | B185: 0.6345733528 | C185: 0 | D185: 2 | E185: 2
A186: 0.78 | B186: 0.6221477933 | C186: 0 | D186: 2 | E186: 2
A187: 0.79 | B187: 0.6093036382 | C187: 0 | D187: 2 | E187: 2
A188: 0.8 | B188: 0.5960138257 | C188: 0 | D188: 2 | E188: 2
A189: 0.81 | B189: 0.5822478403 | C189: 0 | D189: 2 | E189: 2
A190: 0.82 | B190: 0.5679710598 | C190: 0 | D190: 2 | E190: 2
A191: 0.83 | B191: 0.5531439344 | C191: 0 | D191: 2 | E191: 2
A192: 0.84 | B192: 0.5377209404 | C192: 0 | D192: 2 | E192: 2
A193: 0.85 | B193: 0.5216492283 | C193: 0 | D193: 2 | E193: 2
A194: 0.86 | B194: 0.504866849 | C194: 0 | D194: 2 | E194: 2
A195: 0.87 | B195: 0.487300383 | C195: 0 | D195: 2 | E195: 2
A196: 0.88 | B196: 0.4688617082 | C196: 0 | D196: 2 | E196: 2
A197: 0.89 | B197: 0.4494434888 | C197: 0 | D197: 2 | E197: 2
A198: 0.9 | B198: 0.4289127045 | C198: 0 | D198: 2 | E198: 2
A199: 0.91 | B199: 0.4071010645 | C199: 0 | D199: 2 | E199: 2
A200: 0.92 | B200: 0.3837902493 | C200: =CHOOSE(MATCH($E$1,dgrs),IF(A200<0,IFERROR(1-B200,1),0),0,0,IF(A200>0,IFERROR(1-B200,1),0)) -> 0 | D200: =CHOOSE(MATCH($E$1,dgrs),IF(A200<0,2*B200,2),IF(A200<0,0,1-B200),IF(A200>0,0,1-B200),IF(A200>0,2*B200,2)) -> 2 | E200: =CHOOSE(MATCH($E$1,dgrs),IF(A200<0,B200+1,2),IF(A200<0,2,2*B200),IF(A200>0,2,2*B200),IF(A200>0,B200+1,2)) -> 2
A201: 0.93 | B201: =IFERROR(IF(SQRT(1-(A201*A201)/($E$3*$E$3))<0.05,0,SQRT(1-(A201*A201)/($E$3*$E$3))),0) -> 0.3586880878 | C201: 0 | D201: 2 | E201: 2
A202: =A201+$B$2 -> 0.94 | B202: 0.3313877538 | C202: 0 | D202: 2 | E202: 2
... 6 more rows
